bitfinex/quotes_SOLUSD_20251212
["timestamp","ask_amount","ask_price","bid_price","bid_amount"]
[1765563864123,112.58750466,131.8,131.76,15.88950316]
[1765563864326,0.7,131.79,131.75,8.3099365]
[1765563864516,5.75242729,131.79,131.74,7.5906235]
[1765563864825,5.05220892,131.78,131.74,8.3106235]
[1765563865030,5.75220892,131.78,131.74,8.3106235]
[1765563865561,13.34078264,131.78,131.74,8.3106235]
[1765563865744,5.05220892,131.78,131.74,10.94558786]
[1765563866035,15.90805759,131.79,131.75,0.72]
[1765563866242,16.60805759,131.79,131.75,0.72]
[1765563866622,13.46188279,131.78,131.73,7.59117149]
[1765563866832,5.05687851,131.77,131.73,7.59126884]
[1765563867037,9.02,131.77,131.73,7.59126884]
[1765563867537,16.60919698,131.77,131.73,7.59126884]
[1765563868640,8.32,131.77,131.74,0.72]
[1765563869117,5.06332843,131.78,131.74,0.72]
[1765563869326,0.2,131.81,131.77,7.70478213]
[1765563869524,0.2,131.81,131.79,8.80994492]
[1765563869525,0.9,131.81,131.79,8.80994492]
[1765563869744,0.9,131.81,131.78,8.3]
[1765563869943,0.7,131.8,131.73,26.56948185]
[1765563870146,0.7,131.8,131.76,0.28432314]
[1765563870344,0.7,131.8,131.75,13.0470912]
[1765563870547,8.28734249,131.8,131.7,37.96504187]
[1765563870748,7.70478213,131.79,131.72,20.75187333]
[1765563870949,8.40478213,131.79,131.73,0.14216157]
[1765563871140,0.7,131.78,131.74,8.3]
[1765563871931,0.7,131.78,131.75,7.58994285]
[1765563872954,0.7,131.8,131.75,7.58994285]
[1765563873252,7.78680107,131.81,131.75,7.58994285]
[1765563873253,0.7,131.79,131.75,7.58994285]
[1765563876953,0.7,131.79,131.75,26.56527491]
[1765563878434,119.7915832,131.81,131.76,0.28432314]
[1765563878435,104.5,131.81,131.76,0.28432314]
[1765563878745,104.5,131.81,131.77,8.3]
[1765563878746,0.7,131.8,131.77,8.3]
[1765563879362,104.5,131.81,131.77,8.3]
[1765563879536,105.2,131.81,131.77,8.3]
[1765563879736,0.2,131.81,131.8,0.28432314]
[1765563879953,0.2,131.81,131.8,16.28910527]
[1765563880344,0.2,131.81,131.8,23.87635868]
[1765563881150,0.2,131.81,131.8,16.17157655]
[1765563881345,0.2,131.81,131.8,15.88725341]
[1765563885743,0.2,131.81,131.8,23.87635868]
[1765563885943,0.2,131.81,131.8,32.6863036]
[1765563887563,0.2,131.81,131.8,16.17157655]
[1765563887737,0.2,131.81,131.8,23.87635868]
[1765563888054,0.2,131.81,131.8,19.52430054]
[1765563888254,0.2,131.81,131.8,16.17157655]
[1765563889540,0.2,131.81,131.8,19.52430054]
[1765563889741,0.2,131.81,131.8,16.17157655]
[1765563890959,0.2,131.81,131.8,19.52430054]
[1765563891170,0.2,131.83,131.82,13.0470912]
[1765563891349,0.2,131.83,131.82,34.55269347]
[1765563891663,0.2,131.83,131.82,24.98413833]
[1765563891865,0.2,131.83,131.82,21.63141434]
[1765563892073,0.2,131.83,131.82,24.98413833]
[1765563892967,0.2,131.83,131.82,32.57024059]
[1765563894863,0.2,131.83,131.82,41.38018551]
[1765563895039,0.2,131.83,131.82,33.08018551]
[1765563895235,0.2,131.83,131.82,41.38018551]
[1765563896236,0.2,131.83,131.82,32.57024059]
[1765563897372,0.2,131.83,131.82,32.56826132]
[1765563898164,0.2,131.83,131.82,41.37820624]
[1765563899865,0.2,131.83,131.82,44.41552732]
[1765563900264,0.9,131.83,131.82,29.2175166]
[1765563900583,0.9,131.83,131.82,8.3]
[1765563900951,0.2,131.83,131.82,8.3]
[1765563901139,0.9,131.83,131.82,8.3]
[1765563901344,0.9,131.83,131.82,15.88610226]
[1765563901766,0.2,131.83,131.82,19.23684698]
[1765563902169,0.9,131.83,131.82,15.88610226]
[1765563902376,0.2,131.83,131.82,15.88610226]
[1765563903175,0.9,131.83,131.82,8.3]
[1765563903370,0.9,131.83,131.82,15.88610226]
[1765563904674,0.2,131.83,131.82,28.33111504]
[1765563904972,0.2,131.83,131.82,19.52117012]
[1765563905375,0.2,131.86,131.83,22.14135926]
[1765563905563,0.2,131.86,131.85,16.68215906]
[1765563905876,0.2,131.86,131.85,25.49210398]
[1765563906079,0.7,131.9,131.85,33.07648016]
[1765563906259,0.7,131.92,131.89,3.35074472]
[1765563906582,0.7,131.92,131.9,3.63506786]
[1765563906964,0.2,131.93,131.9,3.63506786]
[1765563907174,0.2,131.93,131.92,13.33141434]
[1765563907488,0.2,131.93,131.92,24.98215906]
[1765563907983,0.2,131.93,131.92,16.26781991]
[1765563908164,0.2,131.93,131.92,23.84817163]
[1765563910278,0.2,131.93,131.92,23.56384849]
[1765563910468,0.9,131.93,131.92,15.26384849]
[1765563910653,0.2,131.93,131.92,23.56384849]
[1765563910854,0.2,131.93,131.92,36.89526283]
[1765563911054,0.2,131.93,131.92,45.70520775]
[1765563912074,0.2,131.93,131.92,36.89526283]
[1765563912658,0.2,131.93,131.92,29.21176606]
[1765563912853,0.2,131.93,131.92,36.89526283]
[1765563914089,0.2,131.93,131.92,45.70520775]
[1765563916386,0.2,131.93,131.92,48.74022425]
[1765563917263,0.2,131.95,131.94,13.0470912]
[1765563917470,0.2,131.95,131.94,29.17274954]
[1765563917966,0.2,131.95,131.94,45.70405869]
[1765563919795,0.2,131.95,131.94,53.27924708]
[1765563919992,0.2,131.95,131.94,45.70405869]
[1765563921863,0.2,131.95,131.94,50.49749589]
[1765563923179,0.2,131.97,131.95,0.28432314]
[1765563923384,0.2,131.97,131.96,42.91829323]
[1765563924893,0.72,132.0,131.97,0.28432314]
[1765563925069,0.72,132.02,132.0,7.85960914]
[1765563925274,0.72,132.02,132.01,0.28432314]
[1765563925791,0.72,132.02,132.0,28.35221997]
[1765563925792,0.72,132.02,132.0,8.3]
[1765563926378,0.72,132.02,132.0,15.87554375]
[1765563927394,0.72,132.02,132.0,8.3]
[1765563927596,0.72,132.02,132.0,15.87569039]
[1765563928586,0.72,132.02,132.0,28.35262436]
[1765563928790,0.72,132.04,132.01,12.76125711]
[1765563928979,7.57134273,132.08,132.04,0.28432314]
[1765563929175,7.57134273,132.08,132.03,12.47693397]
[1765563929176,7.57231561,132.06,132.02,8.3]
[1765563929395,12.59979707,132.06,132.02,8.3]
[1765563929574,0.72,132.05,132.02,8.3]
[1765563929778,0.72,132.05,132.02,15.87459528]
[1765563929980,0.72,132.05,132.02,8.3]
[1765563930588,0.72,132.05,132.02,15.87460039]
[1765563931102,0.72,132.05,132.02,21.09687583]
[1765563932301,8.29317177,132.05,132.02,8.3]
[1765563932805,0.72,132.04,132.02,8.3]
[1765563933383,8.29352832,132.04,132.0,7.57537751]
[1765563933596,13.51580376,132.04,131.99,7.57616299]
[1765563933904,0.72,132.03,132.0,7.5756752]
[1765563934076,0.72,132.03,132.0,5.36443701]
[1765563934282,0.72,132.03,132.0,7.57566048]
[1765563934799,0.72,132.03,131.99,8.3]
[1765563935176,0.72,132.03,131.99,15.87597393]
[1765563935376,0.72,132.03,132.0,7.57573232]
[1765563935892,0.72,132.03,132.0,12.80022095]
[1765563937079,0.72,132.03,132.0,7.57573232]
[1765563937604,0.72,132.03,132.01,0.28432314]
[1765563937908,0.72,132.03,132.02,13.08342167]
[1765563938284,0.72,132.03,132.02,23.73082277]
[1765563938681,0.72,132.03,132.02,28.9553114]
[1765563939406,0.72,132.06,132.03,0.28432314]
[1765563939602,0.72,132.06,132.04,8.3]
[1765563940311,0.72,132.06,132.04,21.82448863]
[1765563940602,0.72,132.06,132.04,15.87325431]
[1765563941700,0.72,132.06,132.04,8.3]
[1765563942086,0.72,132.06,132.03,7.57390055]
[1765563943502,0.72,132.06,132.03,31.73347968]
[1765563943829,0.72,132.06,132.04,8.3]
[1765563944509,0.72,132.06,132.05,7.57288905]
[1765563945423,5.03141382,132.08,132.05,32.01392346]
[1765563945630,5.75141382,132.08,132.06,8.3]
[1765563945792,5.75141382,132.08,132.06,13.52448863]
[1765563946002,0.72,132.08,132.06,13.52448863]
[1765563946394,0.72,132.08,132.07,7.57174225]
[1765563949119,5.77486067,132.08,132.07,7.57174225]
[1765563950116,5.77486067,132.08,132.07,15.14144848]
[1765563951796,5.77486067,132.08,132.07,7.57174225]
[1765563955113,5.77486067,132.08,132.06,29.76361377]
[1765563955314,5.73486067,132.07,132.06,15.87208677]
[1765563958146,5.73486067,132.07,132.06,22.19390754]
[1765563958310,5.73486067,132.07,132.06,15.87208677]
[1765563961022,5.05486067,132.07,132.06,21.38089854]
[1765563961324,0.2,132.09,132.06,22.47823068]
[1765563961535,5.75614463,132.08,132.06,15.87208677]
[1765563961742,5.07614463,132.07,132.06,15.87208677]
[1765563962037,5.75614463,132.07,132.06,15.87208677]
[1765563962746,5.75614463,132.07,132.06,15.87231561]
[1765563963248,5.07614463,132.07,132.06,21.09680424]
[1765563963548,0.88,132.09,132.07,0.28432314]
[1765563963717,0.2,132.09,132.08,5.50881177]
[1765563963923,0.2,132.09,132.08,13.78881177]
[1765563964138,0.2,132.09,132.08,35.97859104]
[1765563964562,1e-08,132.09,132.08,44.78853596]
[1765563965433,1e-08,132.09,132.08,52.35970494]
[1765563966440,1e-08,132.09,132.08,57.58419357]
[1765563967643,0.68,132.16,132.11,13.0470912]
[1765563967847,0.68,132.16,132.13,5.22448863]
[1765563968247,0.68,132.16,132.13,10.29696984]
[1765563968754,0.2,132.18,132.15,5.22448863]
[1765563968957,0.68,132.17,132.15,5.22448863]
[1765563969128,0.68,132.17,132.15,0.28432314]
[1765563969449,0.68,132.17,132.16,21.35539772]
[1765563969632,0.2,132.18,132.17,0.28432314]
[1765563969833,0.2,132.18,132.17,5.50881177]
[1765563970450,0.2,132.18,132.17,10.57444031]
[1765563970841,0.88,132.18,132.17,5.06562854]
[1765563971559,0.88,132.18,132.16,21.07107458]
[1765563971869,0.68,132.17,132.16,21.35539772]
[1765563972026,0.88,132.18,132.16,21.35539772]
[1765563972231,0.2,132.18,132.17,5.50881177]
[1765563972456,0.2,132.18,132.17,5.49328149]
[1765563972753,0.2,132.18,132.17,10.55891003]
[1765563973128,0.88,132.18,132.16,15.84658595]
[1765563973334,0.2,132.18,132.17,5.49328149]
[1765563973931,0.2,132.18,132.17,26.10638615]
[1765563974130,0.2,132.18,132.17,31.1601972]
[1765563974355,1e-08,132.18,132.17,39.97014212]
[1765563975340,1e-08,132.18,132.17,26.92305092]
[1765563975542,1e-08,132.2,132.19,13.33141434]
[1765563975847,1e-08,132.2,132.19,26.82037269]
[1765563976064,1e-08,132.2,132.19,34.38524143]
[1765563976253,1e-08,132.2,132.19,39.43905248]
[1765563980240,1e-08,132.2,132.19,48.2489974]
[1765563983769,0.2,132.23,132.19,48.2489974]
[1765563983969,7.5591322,132.3,132.25,3.33023251]
[1765563983970,0.68,132.27,132.25,3.33023251]
[1765563984149,0.68,132.27,132.25,11.61023251]
[1765563985768,0.68,132.28,132.27,20.89170767]
[1765563985950,0.68,132.28,132.27,29.17170767]
[1765563986471,0.68,132.28,132.27,28.88738453]
[1765563986662,0.68,132.28,132.27,15.84029333]
[1765563988058,0.68,132.28,132.25,29.17245733]
[1765563988458,0.68,132.28,132.26,7.56082098]
[1765563989061,0.68,132.28,132.27,7.56029333]
[1765563989964,0.68,132.28,132.26,7.8451881]
[1765563990270,0.68,132.28,132.25,21.3270912]
[1765563990472,0.68,132.28,132.25,8.28]
[1765563990678,3.33023251,132.27,132.21,43.56656011]
[1765563990856,3.33023251,132.27,132.22,0.28432314]
[1765563991063,0.68,132.26,132.22,7.56278172]
[1765563991262,0.68,132.26,132.23,7.56250425]
[1765563991868,4.01023251,132.26,132.21,8.28]
[1765563992077,10.89213807,132.25,132.21,8.28]
[1765563992260,11.57213807,132.25,132.2,7.56387697]
[1765563992466,0.68,132.24,132.2,7.56387697]
[1765563993209,0.68,132.24,132.19,21.3270912]
[1765563993210,0.68,132.24,132.21,7.56370509]
[1765563994081,0.68,132.24,132.2,7.56429652]
[1765563995955,0.68,132.24,132.2,26.47503782]
[1765563998779,0.68,132.24,132.21,0.28432314]
[1765563998975,0.68,132.24,132.21,11.89455565]
[1765563999176,0.68,132.25,132.22,3.33023251]
[1765564000278,0.68,132.25,132.24,7.56200846]
[1765564001183,0.68,132.27,132.24,7.56200846]
[1765564001968,8.36144147,132.26,132.22,7.56306405]
[1765564002175,5.03120896,132.26,132.24,0.28432314]
[1765564002380,0.68,132.25,132.23,19.1725502]
[1765564002779,0.68,132.25,132.23,15.84231769]
[1765564005569,0.68,132.25,132.23,19.1725502]
[1765564008389,0.68,132.25,132.23,8.28]
[1765564008590,0.68,132.25,132.23,7.56248685]
[1765564008791,0.68,132.25,132.22,7.56291047]
[1765564008986,5.05991735,132.24,132.23,7.56258035]
[1765564009376,5.73991735,132.24,132.23,7.56258035]
[1765564009576,5.73991735,132.24,132.22,7.56315232]
[1765564009897,7.5610812,132.26,132.22,7.56315232]
[1765564009898,0.68,132.23,132.22,7.56315232]
[1765564010895,0.68,132.23,132.21,7.84804751]
[1765564011072,0.68,132.23,132.2,43.85380571]
[1765564011073,5.06687076,132.22,132.2,7.56404327]
[1765564011279,8.39928997,132.21,132.16,7.56620629]
[1765564011494,5.06687076,132.2,132.17,7.5658217]
[1765564011691,5.06687076,132.19,132.17,7.5658217]
[1765564011994,5.06687076,132.18,132.17,7.5658217]
[1765564012195,5.75687076,132.18,132.17,7.5658217]
[1765564012583,5.75687076,132.18,132.16,7.56658595]
[1765564012786,0.69,132.18,132.16,7.56658595]
[1765564013889,0.69,132.18,132.16,10.89900516]
[1765564014104,0.69,132.18,132.16,7.56658595]
[1765564014306,0.69,132.18,132.16,10.89900516]
[1765564014506,0.69,132.2,132.17,0.28432314]
[1765564014801,5.0768435,132.19,132.17,8.56432314]
[1765564014992,5.0768435,132.18,132.17,8.56432314]
[1765564015595,0.69,132.19,132.17,16.1303366]
[1765564016393,0.69,132.19,132.17,19.46275581]
[1765564017000,0.69,132.19,132.17,16.1303366]
[1765564018578,0.69,132.19,132.17,15.84601346]
[1765564018775,0.69,132.19,132.17,7.56601346]
[1765564018998,5.07784182,132.18,132.16,7.85069174]
[1765564019202,0.69,132.19,132.16,7.85069174]
[1765564019410,3.33241921,132.2,132.12,3.33241921]
[1765564019411,9.09972346,132.18,132.12,3.33241921]
[1765564019584,8.40972346,132.17,132.12,7.56863982]
[1765564019786,8.40972346,132.17,132.12,15.84887677]
[1765564019787,5.07730425,132.16,132.12,15.84887677]
[1765564020106,0.69,132.16,132.12,15.84887677]
[1765564020316,0.69,132.15,132.12,38.10348792]
[1765564020615,5.07815687,132.17,132.15,13.33141434]
[1765564020817,0.69,132.19,132.16,11.61241921]
[1765564020982,0.69,132.19,132.18,0.28432314]
[1765564021405,7.56278796,132.23,132.18,3.61674235]
[1765564021587,5.76560852,132.22,132.18,0.28432314]
[1765564021788,5.07560852,132.21,132.18,3.61674235]
[1765564022096,0.69,132.21,132.16,8.28]
[1765564022293,0.69,132.2,132.17,11.18250972]
[1765564022879,0.69,132.2,132.17,7.56576737]
[1765564023096,0.69,132.2,132.17,8.28]
[1765564023704,0.69,132.2,132.16,7.56610987]
[1765564023899,0.69,132.2,132.16,10.89852908]
[1765564024389,8.25431574,132.2,132.16,10.89852908]
[1765564024585,13.32784651,132.2,132.16,10.89852908]
[1765564024795,0.69,132.19,132.16,10.89852908]
[1765564025908,8.25495964,132.19,132.15,19.46373174]
[1765564026112,8.25495964,132.19,132.14,10.89993764]
[1765564026284,0.69,132.18,132.14,10.89993764]
[1765564026604,0.69,132.18,132.16,3.33241921]
[1765564026979,0.69,132.18,132.14,7.85191838]
[1765564027296,0.69,132.18,132.15,7.56712159]
[1765564027707,0.69,132.18,132.14,11.18429611]
[1765564028009,13.32629069,132.18,132.14,10.89997297]
[1765564028397,0.69,132.17,132.14,10.89997297]
[1765564029212,0.69,132.17,132.14,7.56755376]
[1765564029511,0.69,132.17,132.14,10.89997297]
[1765564031111,0.69,132.17,132.14,7.56755376]
[1765564032213,0.69,132.17,132.14,10.89997297]
[1765564032509,104.3,132.18,132.15,3.61674235]
[1765564032719,0.69,132.17,132.15,3.61674235]
[1765564033609,104.3,132.18,132.15,3.61674235]
[1765564033610,104.3,132.18,132.16,3.33241921]
[1765564033814,104.3,132.18,132.16,11.61241921]
[1765564034003,104.99,132.18,132.16,11.61241921]
[1765564034398,0.69,132.18,132.17,7.56601346]
[1765564034923,0.69,132.21,132.18,0.28432314]
[1765564035213,5.07001928,132.23,132.2,3.33241921]
[1765564035422,0.69,132.23,132.21,3.33241921]
[1765564036117,104.99,132.26,132.22,3.33241921]
[1765564036315,0.69,132.26,132.24,7.56200846]
[1765564036500,0.69,132.25,132.24,7.56200846]
[1765564037921,0.69,132.25,132.24,10.89442767]
[1765564038120,0.69,132.25,132.24,7.56200846]
[1765564038439,0.69,132.27,132.24,29.79944884]
[1765564038721,13.88055644,132.3,132.24,29.79944884]
[1765564038722,0.69,132.31,132.27,0.28432314]
[1765564038926,0.69,132.31,132.29,3.33241921]
[1765564039219,0.69,132.31,132.28,3.33241921]
[1765564039810,0.69,132.31,132.27,3.61674235]
[1765564040025,0.69,132.31,132.28,7.5597218]
[1765564040399,0.69,132.31,132.28,15.20302397]
[1765564040734,0.69,132.31,132.29,7.64330217]
[1765564041219,0.69,132.31,132.28,23.48302397]
[1765564042935,0.69,132.31,132.29,15.20217632]
[1765564043146,0.71,132.31,132.29,15.20217632]
[1765564043519,0.71,132.33,132.3,7.92762531]
[1765564043718,0.71,132.33,132.31,7.64330217]
[1765564043945,0.71,132.33,132.31,12.41391959]
[1765564044943,0.71,132.33,132.31,19.97183066]
[1765564045148,0.71,132.33,132.31,7.55791107]
[1765564045523,0.71,132.33,132.31,15.83791107]
[1765564046337,8.48,132.37,132.32,12.69824273]
[1765564046531,0.71,132.35,132.32,12.69824273]
[1765564046819,0.71,132.35,132.34,12.41391959]
[1765564047142,0.71,132.36,132.34,12.41391959]
[1765564047352,0.71,132.36,132.34,12.69824273]
[1765564047938,0.2,132.37,132.35,12.40741768]
[1765564048257,0.2,132.37,132.34,8.56432314]
[1765564048448,0.91,132.37,132.35,12.40741768]
[1765564048624,8.46463136,132.37,132.34,8.28]
[1765564048821,0.71,132.36,132.34,8.28]
[1765564049253,0.71,132.36,132.32,20.68741768]
[1765564049461,0.71,132.36,132.32,8.28]
[1765564049621,13.11741768,132.36,132.32,8.28]
[1765564049818,13.11741768,132.36,132.3,28.24559079]
[1765564050021,0.71,132.35,132.3,28.24559079]
[1765564050455,8.26605768,132.35,132.3,28.24559079]
[1765564050655,0.71,132.34,132.31,12.40741768]
[1765564051149,0.71,132.36,132.33,12.40741768]
[1765564052139,0.71,132.36,132.31,0.28432314]
[1765564052446,8.26550964,132.36,132.31,20.24930706]
[1765564052820,0.71,132.36,132.31,26.73690865]
[1765564053026,0.2,132.37,132.33,0.28432314]
[1765564053239,0.71,132.35,132.33,20.97174082]
[1765564053638,0.71,132.35,132.33,20.68741768]
[1765564054631,0.91,132.37,132.34,12.40741768]
[1765564055031,0.71,132.36,132.34,12.40741768]
[1765564055232,0.71,132.36,132.33,15.83643592]
[1765564055443,0.71,132.36,132.34,12.40741768]
[1765564055633,0.71,132.36,132.34,19.9632222]
[1765564055950,0.91,132.37,132.35,12.40741768]
[1765564056147,0.2,132.37,132.35,12.40741768]
[1765564056324,0.91,132.37,132.35,12.40741768]
[1765564056526,0.2,132.37,132.35,12.40741768]
[1765564056852,0.2,132.37,132.36,12.40741768]
[1765564057454,0.2,132.37,132.36,33.87667045]
[1765564057643,0.2,132.37,132.36,41.43182306]
[1765564058320,0.2,132.37,132.36,41.57398463]
[1765564058928,1e-08,132.37,132.36,50.38392955]
[1765564059734,1e-08,132.37,132.36,37.33683835]
[1765564060450,1e-08,132.37,132.36,40.2193658]
[1765564060826,1e-08,132.37,132.36,41.43182306]
[1765564061569,1e-08,132.37,132.36,50.24176798]
[1765564061859,1e-08,132.37,132.36,53.266457]
[1765564062157,1e-08,132.37,132.36,41.43182306]
[1765564062336,1e-08,132.37,132.36,41.28966149]
[1765564062722,1e-08,132.37,132.36,41.43182306]
[1765564063159,1e-08,132.37,132.36,50.24176798]
[1765564063323,1e-08,132.37,132.36,37.33683835]
[1765564063530,1e-08,132.37,132.36,40.36152737]
[1765564064035,1e-08,132.37,132.36,37.33683835]
[1765564064861,1e-08,132.38,132.37,9.09426806]
[1765564065160,1e-08,132.38,132.37,21.50168574]
[1765564066268,1e-08,132.38,132.37,20.88599619]
[1765564066449,1e-08,132.38,132.37,33.00909073]
[1765564066851,1e-08,132.38,132.37,33.29341387]
[1765564067971,0.71000001,132.38,132.37,33.29341387]
[1765564068134,1e-08,132.38,132.37,33.00909073]
[1765564068554,0.71000001,132.38,132.37,33.00909073]
[1765564068776,0.71000001,132.38,132.35,12.40741768]
[1765564069057,0.71000001,132.38,132.35,19.96292413]
[1765564069933,0.71000001,132.38,132.35,7.55550645]
[1765564070133,8.26411584,132.38,132.34,15.83616279]
[1765564070362,20.67153352,132.38,132.33,33.01100631]
[1765564070541,0.71,132.37,132.33,33.01100631]
[1765564070738,13.11741768,132.37,132.33,7.55649743]
[1765564070941,0.71,132.37,132.33,19.96391511]
[1765564071159,0.71,132.36,132.33,19.96391511]
[1765564071364,0.71,132.36,132.33,7.55649743]
[1765564071541,0.71,132.36,132.33,19.96391511]
[1765564071858,0.71,132.36,132.33,7.55649743]
[1765564073237,20.67269329,132.36,132.32,20.6043346]
[1765564073663,0.71,132.35,132.32,20.6043346]
[1765564073977,0.71,132.35,132.32,33.01175228]
[1765564074876,0.71,132.35,132.32,51.90534357]
[1765564075942,0.71,132.35,132.32,20.6043346]
[1765564076364,8.26589784,132.35,132.31,7.55763601]
[1765564076754,0.71,132.34,132.31,7.55763601]
[1765564078141,0.71,132.36,132.34,13.0470912]
[1765564078454,0.71,132.35,132.34,25.45450888]
[1765564078653,0.71,132.35,132.34,13.0470912]
[1765564079241,0.71,132.36,132.34,33.01080327]
[1765564079444,0.71,132.37,132.34,51.90153925]
[1765564079643,0.71,132.37,132.35,12.40741768]
[1765564080262,5.04899967,132.36,132.35,12.40741768]
[1765564081270,5.04899967,132.36,132.35,19.96314114]
[1765564081579,1e-08,132.38,132.37,13.33141434]
[1765564081756,1e-08,132.38,132.37,34.01883202]
[1765564081958,0.71000001,132.38,132.37,26.8055466]
[1765564082259,1e-08,132.38,132.37,26.8055466]
[1765564082462,1e-08,132.38,132.37,21.61141434]
[1765564082666,1e-08,132.38,132.37,26.8055466]
[1765564083158,1e-08,132.38,132.37,34.36012845]
[1765564083550,5.05952441,132.38,132.37,34.36012845]
[1765564083751,1e-08,132.38,132.37,34.36012845]
[1765564084061,1e-08,132.38,132.37,41.56748194]
[1765564084756,1e-08,132.38,132.37,41.56402076]
[1765564085275,1e-08,132.38,132.37,29.16599619]
[1765564085575,1e-08,132.38,132.37,41.56402076]
[1765564086279,1e-08,132.38,132.37,50.37396568]
[1765564087667,0.2,132.42,132.41,13.33141434]
[1765564087865,0.2,132.42,132.41,34.00943891]
[1765564088171,1e-08,132.42,132.41,42.81938383]
[1765564089270,0.91,132.49,132.45,13.0470912]
[1765564089580,5.76710893,132.48,132.46,19.94747346]
[1765564089760,5.05710893,132.47,132.46,19.94747346]
[1765564089960,5.76710893,132.47,132.46,19.94747346]
[1765564090363,0.71,132.47,132.46,19.94747346]
[1765564090807,0.2,132.49,132.46,39.10541882]
[1765564090978,0.2,132.49,132.48,12.68234771]
[1765564091292,0.91,132.49,132.46,7.54944889]
[1765564091467,0.91,132.49,132.47,12.39802457]
[1765564091784,0.71,132.48,132.47,12.39802457]
[1765564092385,0.71,132.48,132.47,19.94690356]
[1765564093776,0.2,132.49,132.47,20.2312267]
[1765564093981,0.91,132.49,132.48,12.39802457]
[1765564094386,0.91,132.49,132.48,19.94633374]
[1765564094564,0.2,132.49,132.48,45.67577265]
[1765564094967,1e-08,132.49,132.48,32.62868145]
[1765564095177,1e-08,132.51,132.49,9.09426806]
[1765564095381,1e-08,132.51,132.5,21.59141434]
[1765564095578,1e-08,132.51,132.5,33.98943891]
[1765564096062,1e-08,132.51,132.5,21.59141434]
[1765564096270,1e-08,132.51,132.5,41.53660872]
[1765564097596,0.71000001,132.51,132.49,12.39802457]
[1765564098091,0.71000001,132.51,132.48,8.26]
[1765564098092,0.71000001,132.51,132.48,20.65802457]
[1765564098333,0.71000001,132.51,132.48,12.39802457]
[1765564098481,8.25661406,132.51,132.47,19.94651133]
[1765564098797,8.25661406,132.51,132.45,19.94802148]
[1765564098798,20.65463863,132.51,132.45,19.94802148]
[1765564099101,0.65,132.5,132.45,19.94802148]
[1765564099273,5.68365274,132.5,132.45,19.94802148]
[1765564099471,5.68365274,132.5,132.45,7.54999691]
[1765564099693,0.65,132.49,132.44,8.26]
[1765564099892,5.68464874,132.49,132.44,28.20855413]
[1765564100284,1e-08,132.51,132.47,7.54868041]
[1765564100485,7.54661114,132.51,132.48,12.39802457]
[1765564100676,7.54661114,132.51,132.47,12.39802457]
[1765564100877,0.69,132.5,132.47,12.39802457]
[1765564101079,0.69,132.5,132.45,0.28432314]
[1765564101080,0.69,132.5,132.46,12.39802457]
[1765564102069,0.69,132.5,132.45,7.83434201]
[1765564102070,8.23737863,132.5,132.45,20.23236658]
[1765564102590,0.69,132.49,132.45,20.23236658]
[1765564103782,8.23776081,132.49,132.45,20.23236658]
[1765564103979,0.69,132.49,132.46,12.39802457]
[1765564104197,0.69,132.48,132.46,12.39802457]
[1765564104974,0.69,132.48,132.46,19.94713055]
[1765564105993,0.69,132.48,132.44,8.26]
[1765564106185,0.69,132.48,132.44,15.88175704]
[1765564106501,8.23842808,132.48,132.44,15.81045797]
[1765564106884,0.69,132.47,132.44,15.81045797]
[1765564107078,8.23890112,132.47,132.39,18.88287845]
[1765564107284,20.89373635,132.47,132.41,7.62175704]
[1765564107498,0.69,132.46,132.41,7.62175704]
[1765564107887,0.69,132.46,132.42,7.62175704]
[1765564108194,0.69,132.46,132.43,7.55098274]
[1765564108599,0.69,132.46,132.42,7.55165133]
[1765564108799,0.69,132.46,132.41,7.62175704]
[1765564108995,0.69,132.46,132.42,7.55168219]
[1765564109299,0.69,132.46,132.42,15.17343923]
[1765564110185,8.23950728,132.46,132.42,15.17343923]